[Event "10th Cherry Blossom Classic 2023"]
[Site "Dulles"]
[Date "2023.05.29"]
[Round "7.10"]
[White "Ouellet, Maili-Jade"]
[Black "Sriniaiyer, Sudarshan"]
[Result "0-1"]
[ECO "D38"]
[WhiteElo "2246"]
[BlackElo "2211"]
[Annotator "TA"]
[PlyCount "106"]
[EventDate "2023.05.24"]
[EventType "swiss"]
[EventCountry "USA"]
[SourceTitle "playchess.com"]
[Source "ChessBase"]
[SourceQuality "1"]
[TimeControl "5400+30"]

{[%evp 9,106,15,35,25,22,23,35,32,28,27,30,28,31,39,44,29,30,17,15,12,26,22,20,14,16,19,100,53,38,48,69,57,52,37,93,93,158,19,81,59,95,14,38,21,48,44,77,69,88,71,98,101,100,98,109,105,102,68,74,59,88,59,54,41,256,82,70,5,6,27,18,28,21,-8,31,-20,0,-23,0,-18,-14,-91,-54,-304,-307,-1352,-1220,-2633,-2631,-2612,-2496,-1889,-1918,-29991,-2131,-29984,-29983,-29981,-781]} 1. d4 {[%emt 0:08:30]} Nf6 {[%emt 0:00:07]} 2. c4 {[%emt 0:00:05]} e6 {[%emt 0:00:04]} 3. Nf3 {[%emt 0:00:07]} d5 {[%emt 0:00:43]} 4. Nc3 {[%emt 0:00:05]} Bb4 {[%emt 0:01:46]} 5. Qb3 {[%emt 0:00:12]} a5 {[%emt 0:09:22]} 6. cxd5 {[%emt 0:02:46] D38: Queen's Gambit Declined: Ragozin Defence (4 Nf3 Bb4).} exd5 {[%emt 0:01:41]} 7. Bg5 {[%emt 0:00:54]} c6 {[%emt 0:01:26]} 8. e3 {[%emt 0:00:48] White is slightly better.} O-O {[%emt 0:01:25]} 9. Bd3 {[%emt 0:00:20]} h6 {[%emt 0:02:23]} 10. Bh4 {[%emt 0:02:20]} Re8 {[%emt 0:04:15]} 11. O-O {[%emt 0:01:35]} Nbd7 {[%emt 0:04:05] [#]} 12. Rfe1 $146 {[%emt 0:02:25]} ({Predecessor:} 12. Qc2 Be7 13. h3 Ne4 14. Bxe7 Qxe7 15. Rac1 Ndf6 16. Ne5 Nd6 17. Na4 Nfe4 18. Nc5 {½-½ Makarian,R (2414)-Sjugirov,S (2674) Titled Tuesday intern op 4th Febr blitz 2020 (4)}) 12... Be7 {[%emt 0:04:02]} 13. Rad1 {[%emt 0:16:27]} Ne4 {[%emt 0:11:53]} 14. Bxe7 {[%emt 0:00:47]} Qxe7 {[%emt 0:00:12]} 15. Nd2 {[%emt 0:11:36]} Ndf6 {[%emt 0:07:20]} 16. f3 {[%emt 0:02:23]} Nd6 {[%emt 0:06:20]} 17. Qc2 {[%emt 0:04:11]} g6 {[%emt 0:08:50]} (17... Nh5 $11) 18. Nb3 {[%emt 0:12:51]} (18. e4 $16) 18... Bf5 $14 {[%emt 0:03:58]} 19. Bxf5 {[%emt 0:02:53]} Nxf5 {[%emt 0:00:35]} 20. e4 {[%emt 0:01:20]} dxe4 {[%emt 0:01:26]} 21. fxe4 {[%emt 0:00:13]} Ng7 {[%emt 0:00:12]} (21... Ng4 $14) 22. Qd2 $16 {[%emt 0:03:18]} h5 {[%emt 0:13:13]} (22... Kh7 $142) 23. Qf2 {[%emt 0:06:55]} (23. e5 $16 Nd5 24. Nc5) 23... Nd7 {[%emt 0:02:49]} (23... Ng4 $11 24. Qg3 Nf6) 24. Rf1 {[%emt 0:00:52]} a4 {[%emt 0:01:38]} 25. Na1 {[%emt 0:00:40]} (25. Nd2 $16) 25... Rf8 {[%emt 0:01:10]} (25... f5 $5 {[%cal Rf5e4]}) 26. Qg3 {[%emt 0:03:31]} Nb6 {[%emt 0:01:23]} 27. Nc2 {[%emt 0:00:58]} Rad8 {[%emt 0:01:31]} 28. e5 {[%emt 0:15:28]} Ne6 {[%emt 0:03:54]} 29. Ne4 {[%emt 0:00:00]} Nd5 {[%emt 0:00:12]} 30. Ne3 {[%emt 0:00:00]} Nxe3 {[%emt 0:01:56]} 31. Qxe3 {[%emt 0:00:00]} Kg7 {[%emt 0:00:09] Wards off Qh6+} 32. Rf2 {[%emt 0:00:00]} Qb4 {[%emt 0:01:35][%cal Rd8d4]} 33. Nd6 {[%emt 0:00:00]} Rd7 {[%emt 0:00:42]} 34. Qg3 {[%emt 0:00:00]} Kh7 {[%emt 0:01:03]} 35. Qh3 {[%emt 0:00:00]} (35. a3 {simplifies} Qb3 36. Qxb3 axb3 37. Rd3) 35... Kg7 {[%emt 0:01:25]} 36. Kh1 {[%emt 0:00:00]} Re7 $2 {[%emt 0:01:31] [#]} (36... f5 $14) 37. Qh4 $2 {[%emt 0:01:04]} (37. g4 $1 $18 {[%cal Rg4h5] and the rest is easy.} Rd7 38. gxh5 Rxd6 39. exd6 Qxd6 40. d5 cxd5 41. hxg6 (41. Qf3 d4 $18) 41... fxg6 42. Rxf8 Kxf8 43. Qh8+ Ke7 44. Qh7+ (44. Re1 Qf4 $18) 44... Kd8 45. Qxb7) 37... Rd7 {[%emt 0:00:16]} 38. g4 {[%emt 0:00:57]} ({White should try} 38. Qg3 $14) 38... hxg4 $1 $11 {[%emt 0:01:20]} 39. Qxg4 {[%emt 0:00:24] And now Nf5+ would win.} Rxd6 {[%emt 0:00:38]} 40. exd6 {[%emt 0:00:15]} Qxd6 {[%emt 0:00:00]} 41. Kg1 {[%emt 0:01:31][%cal Od4d5]} Qd5 {[%emt 0:00:35]} (41... f5 $5 {[%cal Rf5g4]} 42. Qg3 f4 $11) 42. a3 {[%emt 0:00:35]} (42. Qf3 $14) 42... Rd8 {[%emt 0:00:50][%cal Bf8d8,Bd8d5,Bd5f5,Bf5h5,Bh5h2][%mdl 1056] Black has compensation.} (42... f5 $5 {[%cal Rf5g4]} 43. Qh4 g5 $11) 43. Rfd2 {[%emt 0:01:23]} Qc4 {[%emt 0:00:44]} 44. Qe4 {[%emt 0:00:53]} Rd5 {[%emt 0:00:37]} 45. Kg2 {[%emt 0:00:53]} (45. h4 $11 {keeps the balance.}) 45... Rf5 {[%emt 0:00:59] Hoping for ...Ng5.} 46. Rc2 $2 {[%emt 0:00:24] [#] White is weak on the light squares} (46. Rf2 $1 $15) 46... Qb3 $1 $19 {[%emt 0:00:34]} 47. Rf1 {[%emt 0:00:31] Inhibits Rf4.} (47. Kh1 Ng5 48. Qe2 Qd5+ 49. Qg2) 47... Ng5 {[%emt 0:00:11] ( -> ...Qh3+)} 48. Qe2 {[%emt 0:00:21]} Qd5+ {[%emt 0:00:48]} 49. Kg3 {[%emt 0:00:30]} Ne4+ {[%emt 0:00:24]} ({Stronger than} 49... Qxd4 50. Rxf5 gxf5 51. h4 Qd6+ 52. Kg2 Qd5+ 53. Kf2 Ne4+ 54. Kg1 $15) 50. Kh3 {[%emt 0:00:31]} Rh5+ {[%emt 0:00:39]} ({And not} 50... Qxd4 51. Rxf5 gxf5 52. Kg2 $11) 51. Kg2 {[%emt 0:00:01]} Nd2+ {[%emt 0:00:32]} ({Inferior is} 51... Qxd4 52. Qd1 Qe3 53. Rf3 Rg5+ 54. Kh1 $17) (51... Qg5+ $142 52. Kh1 Ng3+ 53. Kg1 Nxe2+ {[%mdl 64] Discovered Attack (Double check)} 54. Kf2 Nxd4 55. Ke1 Qe3+ 56. Kd1 Qd3+ {[%mdl 64] Deflection, Double Attack} 57. Ke1 Nxc2+ 58. Kf2 Rxh2+ 59. Kg1 Qg3#) 52. Kg3 {[%emt 0:01:09]} Qg5+ {[%emt 0:00:23][%mdl 64] Deflection} 53. Kf2 {[%emt 0:00:33]} Rxh2+ {[%emt 0:00:06] Weighted Error Value: White=0.74/Black=0.31} 0-1

[Event "10th Cherry Blossom Classic 2023"]
[Site "Dulles"]
[Date "2023.05.29"]
[Round "7.11"]
[White "Williams, Justus"]
[Black "Prabhu, Naveen"]
[Result "1/2-1/2"]
[ECO "A11"]
[WhiteElo "2396"]
[BlackElo "2138"]
[Annotator "TA"]
[PlyCount "88"]
[EventDate "2023.05.24"]
[EventType "swiss"]
[EventCountry "USA"]
[SourceTitle "playchess.com"]
[Source "ChessBase"]
[SourceQuality "1"]
[TimeControl "5400+30"]

{[%evp 10,88,0,0,5,24,22,6,4,0,0,0,0,0,0,0,0,-77,-9,-16,0,-205,-198,-270,-157,-148,-45,-23,-36,-128,-140,-256,-74,-92,-91,-391,-4,0,0,0,0,0,0,0,0,-6,0,-29,0,0,0,0,0,-58,-60,-62,-62,-160,-62,-58,-49,-48,-48,-48,-29,-35,-35,-35,-35,-30,-19,-35,-13,-13,-13,-13,0,-6,0,-13,0]} 1. Nf3 {[%emt 0:01:45]} d5 {[%emt 0:02:54]} 2. g3 {[%emt 0:00:24]} Nf6 {[%emt 0:00:25]} 3. Bg2 {[%emt 0:00:10]} Bf5 {[%emt 0:00:07]} 4. c4 {[%emt 0:00:23]} c6 {[%emt 0:00:16]} 5. cxd5 {[%emt 0:05:23]} cxd5 {[%emt 0:00:41]} 6. Qb3 {[%emt 0:00:22]} Nc6 {[%emt 0:01:49] A11: English Opening: 1...c6.} 7. Qxb7 {[%emt 0:05:25]} Bd7 {[%emt 0:01:35] ...Rb8 would be deadly.} 8. Qb3 {[%emt 0:02:12]} e5 {[%emt 0:02:09][%cal Be7e5,Be5e4][%mdl 32]} 9. O-O {[%emt 0:03:08]} e4 {[%emt 0:04:04]} 10. Ne1 $1 {[%emt 0:00:33]} Rb8 {[%emt 0:01:34]} 11. Qd1 {[%emt 0:00:26]} h5 $1 $36 {[%emt 0:02:33][%mdl 2048] Black is pushing.} 12. d3 {[%emt 0:01:59]} h4 $1 {[%emt 0:03:15] aiming for ...hxg3.} 13. dxe4 {[%emt 0:02:10]} (13. Bf4 $11 {keeps the balance.}) 13... dxe4 {[%emt 0:04:31]} (13... hxg3 $1 $17 14. hxg3 dxe4) 14. Nc3 {[%emt 0:01:00]} hxg3 {[%emt 0:00:56]} 15. hxg3 {[%emt 0:00:44]} (15. fxg3 $11 Qb6+ 16. e3) 15... Qa5 $1 $19 {[%emt 0:03:07] Threatens to win with ...Qh5.} 16. Bf4 {[%emt 0:09:59] [#]} (16. Nxe4 $142 Nxe4 17. Qd3) 16... Qh5 $146 {[%emt 0:11:54]} ({Predecessor:} 16... Rxb2 17. Nxe4 Nxe4 18. Bxe4 Qh5 19. g4 Qxg4+ 20. Ng2 g5 21. Rc1 gxf4 22. Bxc6 Bxc6 23. Rxc6 Qh3 24. f3 Be7 {0-1 Petrov,N (2456)-Van Foreest,J (2547) Groningen op-A 53rd 2015 (3)}) 17. g4 $17 {[%emt 0:00:09]} Qxg4 {[%emt 0:01:10]} (17... Bxg4 $6 18. Nxe4 Nd5 19. Qxd5 (19. Nd6+ Bxd6 20. Bxd6 Rd8 $15) 19... Qxd5 20. Nf6+ gxf6 21. Bxd5 $11) (17... Nxg4 $17 {[%cal Og7g5] ...g5! is the strong threat.} 18. Nxe4 Rb4) 18. e3 $15 {[%emt 0:03:03]} Qf5 {[%emt 0:03:33]} 19. Qb1 {[%emt 0:13:44]} ({White should play} 19. Bg3 $1 $15) 19... Rb4 $17 {[%emt 0:08:22] And now ...g5 would win.} 20. f3 {[%emt 0:09:35] [#]} (20. a3 $17 Rc4 21. f3) 20... Nh5 $2 {[%emt 0:11:12]} (20... Bc5 $1 $19 {is more deadly.} 21. fxe4 Qh5) 21. fxe4 {[%emt 0:02:38]} Qg6 {[%emt 0:02:47]} 22. e5 $2 {[%emt 0:13:17][%mdl 8192] [#]} (22. Bc7 $17) 22... Rxf4 $2 {[%emt 0:01:51]} 23. Qxg6 $11 {[%emt 0:00:54]} Rxf1+ {[%emt 0:00:08]} 24. Kxf1 {[%emt 0:00:06]} fxg6 {[%emt 0:00:17]} 25. e6 {[%emt 0:00:02][%mdl 64] Deflection} Bxe6 {[%emt 0:06:03]} 26. Bxc6+ {[%emt 0:00:04]} Kd8 {[%emt 0:02:20]} 27. Nf3 {[%emt 0:02:59]} Nf6 {[%emt 0:02:58]} 28. Ne5 {[%emt 0:05:26]} Rh2 {[%emt 0:02:09]} 29. Bg2 {[%emt 0:00:42]} (29. Nxg6 Bc5 30. Ne5 (30. Rd1+ Kc7 $17) 30... Rxb2 31. Rd1+ Kc7 32. Nb5+ Kb6 $17) 29... Bc5 {[%emt 0:02:37]} 30. Rd1+ {[%emt 0:00:26]} Ke8 {[%emt 0:05:50]} 31. Rd2 {[%emt 0:08:01]} (31. Nxg6 $2 {perishes.} Ng4 32. Rd2 (32. Bc6+ $2 Kf7 $19) 32... Kf7 $19) (31. Nb5 $11 Ng4 32. Nxg4 (32. Nxg6 $2 Bc4+ 33. Ke1 Bxb5 $19) 32... Bxg4 33. Rd5) 31... Rh5 $1 $15 {[%emt 0:01:53]} (31... Bxe3 $2 32. Bc6+ Kf8 33. Nxg6+ Kf7 34. Ne5+ (34. Rxh2 Kxg6 35. Ke2 Bb6 $18) 34... Ke7 35. Rxh2 $18) 32. Bc6+ {[%emt 0:00:24]} ({Much worse is} 32. Nxg6 Bxe3 33. Rd6 Bc4+ 34. Ke1 Kf7 $17) 32... Ke7 {[%emt 0:00:38]} 33. Nxg6+ {[%emt 0:00:22]} Kf7 {[%emt 0:00:05]} 34. Nf4 {[%emt 0:00:23]} Bxe3 {[%emt 0:05:27]} 35. Nxh5 {[%emt 0:00:16]} Bxd2 {[%emt 0:00:04] This pair of bishops is nice.} 36. Nxf6 {[%emt 0:00:46]} gxf6 {[%emt 0:00:26][%mdl 4096] Endgame KBB-KBN} (36... Bxc3 $5 37. Ne4 Bxb2 38. Ng5+ Kf6 39. Nxe6 Kxe6 $15) 37. Ne4 {[%emt 0:00:13]} Bf4 {[%emt 0:00:28]} 38. b3 {[%emt 0:00:08]} Bg4 {[%emt 0:03:14]} 39. Kf2 {[%emt 0:00:03]} f5 {[%emt 0:00:19]} 40. Bd7 {[%emt 0:00:55]} Bc7 {[%emt 0:02:18]} 41. Kg2 {[%emt 0:00:17] The position is equal.} Ke7 {[%emt 0:00:37]} 42. Bc8 {[%emt 0:00:03]} Kd8 {[%emt 0:00:52]} 43. Be6 {[%emt 0:00:04]} Ke7 {[%emt 0:00:21]} 44. Bc8 {[%emt 0:00:03]} Kd8 {[%emt 0:00:48] Weighted Error Value: White=0.32/Black=0.32} 1/2-1/2

[Event "10th Cherry Blossom Classic 2023"]
[Site "Dulles"]
[Date "2023.05.29"]
[Round "7.12"]
[White "Girsh, Daniel"]
[Black "Roselli Mailhe, Bernardo"]
[Result "1/2-1/2"]
[ECO "E19"]
[WhiteElo "2123"]
[BlackElo "2380"]
[Annotator "TA"]
[PlyCount "136"]
[EventDate "2023.05.24"]
[EventType "swiss"]
[EventCountry "USA"]
[SourceTitle "playchess.com"]
[Source "ChessBase"]
[SourceQuality "1"]
[TimeControl "5400+30"]

{[%evp 19,136,8,14,6,4,8,14,-17,-8,-20,-19,-68,-69,-62,-59,-58,-49,-54,-20,-25,-28,-14,-11,-16,-17,-47,-62,-56,-62,-98,-102,-99,-89,-203,-203,-210,-206,-214,-208,-217,-202,-202,-192,-245,-245,-245,-245,-245,-245,-245,-245,-245,-245,-245,-245,-245,-245,-245,-245,-245,-245,-245,-245,-245,-245,-245,-245,-245,-245,-245,-245,-245,0,-245,-245,-245,-245,-245,-245,-245,-162,-157,-151,-143,-91,-251,-251,-251,-251,-251,-251,-230,-223,-223,0,0,0,0,0,0,0,0,0,-154,-154,-154,-154,-223,0,0,0,0,0,0,0,0,0,0,0]} 1. Nf3 {[%emt 0:16:14]} Nf6 {[%emt 0:00:04]} 2. c4 {[%emt 0:00:05]} e6 {[%emt 0:00:37]} 3. g3 {[%emt 0:00:13]} b6 {[%emt 0:03:02]} 4. Bg2 {[%emt 0:00:08]} Bb7 {[%emt 0:00:04]} 5. O-O {[%emt 0:00:07]} Be7 {[%emt 0:02:25]} 6. d4 {[%emt 0:00:08]} O-O {[%emt 0:00:36]} 7. Nc3 {[%emt 0:03:42]} Ne4 {[%emt 0:02:29]} 8. Qc2 {[%emt 0:00:28]} Nxc3 {[%emt 0:00:28]} 9. Qxc3 {[%emt 0:00:08]} d6 {[%emt 0:02:32]} 10. Rd1 {[%emt 0:08:28]} Nd7 {[%emt 0:01:53][%cal Bb8d7,Bd7c5,Bc5d3][%mdl 32]} 11. d5 {[%emt 0:07:06] E19: Queen's Indian: Old Main Line with 7...Ne4 8 Qc2 Nxc3 8 Qxc3.} e5 {[%emt 0:03:24]} 12. e4 $1 {[%emt 0:00:56]} a5 {[%emt 0:01:53] [#]} 13. b3 $146 {[%emt 0:01:06]} ({Predecessor:} 13. Be3 g6 14. Bh6 Re8 15. Qc2 Bc8 16. Nd2 Bg5 17. Bxg5 Qxg5 18. Rf1 Nc5 19. Rae1 {½-½ Van Zyl Rudd,J (2238)-Liu,Z (1912) Wch U16 Montevideo 2017 (6)}) 13... Nc5 {[%emt 0:29:02]} 14. Qe3 {[%emt 0:18:40]} Bc8 {[%emt 0:07:06]} 15. Bb2 {[%emt 0:03:19]} (15. Ba3 $11) 15... f5 $15 {[%emt 0:03:45]} 16. exf5 {[%emt 0:00:26]} Bxf5 {[%emt 0:00:39]} 17. Re1 {[%emt 0:09:13][%cal Bd1e1,Be1e2,Be2b2][%mdl 32]} Nd3 {[%emt 0:05:25]} 18. Re2 {[%emt 0:04:59]} Nxb2 {[%emt 0:15:24]} 19. Rxb2 {[%emt 0:00:06]} h6 {[%emt 0:01:36]} 20. Re1 {[%emt 0:02:57]} Qd7 {[%emt 0:01:03]} 21. Rbe2 {[%emt 0:03:34]} Bg4 $36 {[%emt 0:00:27][%mdl 2048] Black is pushing.} 22. h4 {[%emt 0:01:13]} Qf5 {[%emt 0:02:28][%cal Rg4f3]} 23. Nd2 {[%emt 0:00:21]} Bxe2 {[%emt 0:00:12]} 24. Rxe2 {[%emt 0:00:23]} g5 {[%emt 0:01:10]} 25. Be4 {[%emt 0:03:47]} Qf7 {[%emt 0:00:59]} 26. hxg5 {[%emt 0:00:05]} (26. Bd3 $17 {might work better.}) 26... Bxg5 $19 {[%emt 0:00:17]} 27. Qd3 {[%emt 0:00:06]} Bxd2 {[%emt 0:00:36]} 28. Qxd2 {[%emt 0:00:02]} Qg7 {[%emt 0:00:11]} 29. Kg2 {[%emt 0:01:04]} a4 {[%emt 0:00:37]} 30. b4 {[%emt 0:00:47]} Qg5 {[%emt 0:01:19]} 31. Qxg5+ {[%emt 0:00:35]} (31. Qe1 {is a better defense.}) 31... hxg5 {[%emt 0:00:05][%mdl 4096] Endgame KRR-KRB} 32. a3 {[%emt 0:00:03]} g4 {[%emt 0:01:34]} 33. Kg1 {[%emt 0:09:42]} Rf6 {[%emt 0:00:14]} 34. b5 {[%emt 0:01:12]} Kg7 {[%emt 0:00:21]} 35. Kg2 {[%emt 0:00:28]} Raf8 {[%emt 0:00:11][%cal Of6f3]} 36. Kg1 {[%emt 0:00:11]} Kh6 {[%emt 0:00:05]} 37. Kf1 {[%emt 0:00:05]} Kg5 {[%emt 0:00:56]} 38. Kg1 {[%emt 0:00:07]} Rh8 {[%emt 0:00:52]} 39. Re3 {[%emt 0:00:49]} Rf7 {[%emt 0:01:49]} 40. Re2 {[%emt 0:00:22]} Rh6 {[%emt 0:00:36]} 41. Re3 {[%emt 0:00:26]} Rhf6 {[%emt 0:02:08]} 42. Re2 {[%emt 0:00:07]} Rf8 {[%emt 0:05:01]} 43. Kf1 {[%emt 0:00:25]} Re8 {[%emt 0:00:59]} 44. Re3 {[%emt 0:00:22]} Re7 {[%emt 0:00:04]} 45. Kg1 {[%emt 0:00:21]} Ref7 {[%emt 0:00:50]} 46. Re2 {[%emt 0:00:06]} Rg7 {[%emt 0:01:42]} 47. Re3 {[%emt 0:00:42]} Rf8 {[%emt 0:00:21]} 48. Kf1 {[%emt 0:00:54]} Rgf7 {[%emt 0:00:51]} 49. Re2 {[%emt 0:00:26]} Rf3 {[%emt 0:00:54]} 50. Bxf3 {[%emt 0:00:07]} Rxf3 {[%emt 0:00:15] KR-KR} 51. Re3 {[%emt 0:00:12]} Rf7 {[%emt 0:00:10]} ({Black should play} 51... Rf8 52. Re1 Kf5) 52. c5 $2 {[%emt 0:02:10]} bxc5 {[%emt 0:00:29] [#] White must now prevent ...Rf3.} ({Worse is} 52... dxc5 53. Rxe5+ Rf5 54. Re7 $11) 53. Re4 {[%emt 0:00:04]} Rf3 {[%emt 0:01:31]} 54. Rxa4 {[%emt 0:00:06]} Rb3 {[%emt 0:00:11]} 55. Ra7 {[%emt 0:02:00]} Rxb5 {[%emt 0:01:15]} 56. Rxc7 {[%emt 0:00:01] [#]} c4 $2 {[%emt 0:00:14]} 57. Rxc4 $11 {[%emt 0:00:16]} Rxd5 {[%emt 0:00:05]} 58. a4 {[%emt 0:00:39] Wards off Rb5} Kf5 {[%emt 0:00:28]} 59. Ke2 {[%emt 0:00:55] Inhibits Rd1.} e4 {[%emt 0:00:21]} 60. Rb4 {[%emt 0:00:27] aiming for Rb5.} Rd3 $1 {[%emt 0:00:28]} 61. Rb5+ $2 {[%emt 0:00:09]} (61. a5 $11 Ra3 62. Rb5+ Ke6 63. Rg5) 61... d5 $17 {[%emt 0:00:26]} 62. Rb8 {[%emt 0:02:45]} Ra3 {[%emt 0:00:12]} 63. Ra8 {[%emt 0:01:24]} (63. Re8 $17) 63... d4 $2 {[%emt 0:01:31]} (63... Ke5 $19 {And now ...Kd4 would win.} 64. a5 Ra2+ 65. Kf1 Kd4) 64. a5 $11 {[%emt 0:00:27] The position is equal.} Ra2+ {[%emt 0:00:05]} 65. Ke1 {[%emt 0:00:06]} Ra1+ {[%emt 0:00:42]} 66. Kd2 {[%emt 0:00:29]} Ra2+ {[%emt 0:00:17]} 67. Ke1 {[%emt 0:00:14]} Ra1+ {[%emt 0:00:47]} 68. Kd2 {[%emt 0:00:06]} Ra2+ {[%emt 0:00:19] Weighted Error Value: White=0.12 (very precise) /Black=0.13 (very precise)} 1/2-1/2

[Event "10th Cherry Blossom Classic 2023"]
[Site "Dulles"]
[Date "2023.05.29"]
[Round "7.13"]
[White "Slate, Kent"]
[Black "Kiewra, Keaton"]
[Result "1/2-1/2"]
[ECO "B22"]
[WhiteElo "1989"]
[BlackElo "2352"]
[Annotator "TA"]
[PlyCount "65"]
[EventDate "2023.05.24"]
[EventType "swiss"]
[EventCountry "USA"]
[SourceTitle "playchess.com"]
[Source "ChessBase"]
[SourceQuality "1"]
[TimeControl "5400+30"]

{[%evp 14,65,8,33,45,0,0,0,10,0,7,-25,-25,-18,-26,-10,-26,-30,-19,-9,0,0,0,0,0,0,11,-7,-7,-10,-11,-21,-12,-30,0,-79,-33,-83,-89,-86,0,0,0,0,0,-78,0,0,0,0,0,0,0,0]} 1. e4 {[%emt 0:00:02][%cal Be2e4,Be4e5,Be5d6][%mdl 32]} c5 {[%emt 0:02:26][%cal Bc7c5,Bc5c4][%mdl 32]} 2. c3 {[%emt 0:00:06]} Nf6 {[%emt 0:00:21]} 3. e5 {[%emt 0:00:13]} Nd5 {[%emt 0:00:04]} 4. Nf3 {[%emt 0:00:06]} Nc6 {[%emt 0:00:08]} 5. Bc4 {[%emt 0:00:06][%cal Bf1c4,Bc4b3,Bb3c2][%mdl 32]} Nb6 {[%emt 0:00:07]} 6. Bb3 {[%emt 0:00:05]} c4 {[%emt 0:00:14]} 7. Bc2 {[%emt 0:00:07]} d5 {[%emt 0:00:06] 7...d6 gains popularity.} 8. exd6 {[%emt 0:00:29]} Bg4 {[%emt 0:00:05] B22: Sicilian: 2 c3.} 9. O-O {[%emt 0:02:41]} (9. h3 $5 {[%cal Rh3g4]} Bh5 10. Qe2 $14) 9... e6 {[%emt 0:01:20]} 10. d4 {[%emt 0:07:04] Inhibits Ne5.} cxd3 {[%emt 0:03:40]} 11. Qxd3 {[%emt 0:00:32]} Qxd6 {[%emt 0:00:25] [#]} 12. Qe4 $146 {[%emt 0:10:11]} (12. Nbd2 {simplifies} Qxd3 13. Bxd3 Be7 14. a4) ({Predecessor:} 12. Qe2 Qc7 13. Nbd2 Nd4 14. cxd4 Qxc2 15. Qb5+ Qc6 16. Qxc6+ bxc6 17. Ne5 Be2 18. Re1 {0-1 Ludwig,J (2287)-Kiewra,K (2444) North American op 25th 2015 (7)}) 12... Bf5 {[%emt 0:00:42]} 13. Qe2 {[%emt 0:00:12]} Bxc2 {[%emt 0:00:31]} 14. Qxc2 {[%emt 0:00:04]} Rd8 {[%emt 0:01:06]} 15. Bg5 {[%emt 0:09:02]} Be7 {[%emt 0:00:35]} 16. Bxe7 {[%emt 0:00:21]} Nxe7 {[%emt 0:02:07][%cal Bc6e7,Be7g6,Bg6f4][%mdl 32]} 17. Nbd2 {[%emt 0:04:13][%cal Bb1d2,Bd2e4,Be4g3][%mdl 32]} O-O {[%emt 0:00:24]} 18. Rfe1 {[%emt 0:01:48]} Ng6 {[%emt 0:01:33]} 19. Ne4 {[%emt 0:04:30]} Qf4 {[%emt 0:02:41]} 20. Ng3 {[%emt 0:01:28]} Rd7 {[%emt 0:00:53]} 21. Re4 {[%emt 0:01:08]} Qc7 {[%emt 0:00:13]} 22. Rae1 {[%emt 0:01:38]} Rfd8 {[%emt 0:00:16]} 23. h4 {[%emt 0:01:13]} Nf4 {[%emt 0:02:15]} (23... h6 {is interesting.} 24. Rxe6 fxe6 25. Qxg6 Rd1) 24. Kh2 {[%emt 0:14:52]} (24. Ne5 $1 $11 Rd5 25. Rxf4 Rxe5 26. Rxe5 Qxe5 27. Re4) 24... f5 {[%emt 0:04:14]} (24... Nd3 $17 25. Rb1 a6) 25. Rxe6 {[%emt 0:02:17]} ({White should try} 25. Rxf4 $1 $15 Qxf4 26. Rxe6) 25... Nxe6 $17 {[%emt 0:00:40]} 26. Rxe6 {[%emt 0:00:07] [#]} Rd5 {[%emt 0:03:19]} (26... g6 $1 $17 27. h5 Re7 28. Rxe7 Qxe7) 27. Qe2 $11 {[%emt 0:00:58] Re8+ would kill now.} h6 {[%emt 0:02:39]} 28. Re8+ {[%emt 0:09:31]} Rxe8 $1 {[%emt 0:00:15]} 29. Qxe8+ {[%emt 0:00:04]} Kh7 {[%emt 0:00:06]} 30. Ng5+ $1 {[%emt 0:00:11] The position is equal.} hxg5 {[%emt 0:00:06]} 31. Qh5+ {[%emt 0:00:04]} Kg8 {[%emt 0:00:05]} 32. Qe8+ {[%emt 0:00:04]} Kh7 {[%emt 0:00:05]} 33. Qh5+ {[%emt 0:00:06] Weighted Error Value: White=0.16 (very precise) /Black=0.11 (very precise)} 1/2-1/2